{"text_format":"1","workbook":"xlsx","n_sheets":15,"sheets":["Dashboard","Desired Accomplishment","List of Keywords","Headlines","Selling Points","Ad Body","Follow-up Type","Incentives","Call to Action","Testimonials","Ad Keys","Niche","Ad Tracker","Follow-up Tracker","Site List"],"not_rendered":{"charts":4,"images":0,"macros":1,"external_links":0,"defined_names":16,"comments":0,"pivot_tables":5},"unopened":[],"bounds":{"document_bytes":16777216,"sheet_cells":100000,"rows_first":2000,"rows_last":500,"rows_between":2000,"halvings":0,"cell_chars":16384,"cell_head_chars":4096},"cells_cut":0,"cells_raw":0,"read":"whole","date_system":"1900"}

{"sheet":"Dashboard","index":0,"n_rows":50,"n_cols":15,"rows_kept":50,"cut":false,"hidden":false,"merged":[[6,6,6,8]]}
["Workbook Contents"]
[]
["1. Desired Accomplishment Worksheet",null,null,"6. Follow-up Type Worksheet",null,"11. Niche Worksheet"]
["2. List of Keywords Worksheet",null,null,"7. Incentives Worksheet",null,"12. Ad Tracker Worksheet"]
["3. Headlines Worksheet",null,null,"8. Call to Action Worksheet",null,"13. Follow-up Tracker Worksheet"]
["4. Selling Points Worksheet",null,null,"9. Testimonials Worksheet",null,"14. Site List"]
["5. Ad Body Worksheet",null,null,"10. Ad Keys Worksheet"]
[]
["Dashboard"]
[]
[]
["Follow-up Tracker",null,null,null,null,null,null,null,null,null,"Ad Tracker"]
[]
[]
["Source / Key","Total",null,"Result","Total",null,"FU Type","Total",null,null,null,null,"Values"]
["A1",1,null,"Sale",1,null,"Other",1,null,null,"Type","Publication/Online Service","# of Postings","Total Cost","Leads"]
["Grand Total",1,null,"Grand Total",1,null,"Grand Total",1,null,null,"Online","CoronelDP",1,0,1]
[null,null,null,null,null,null,null,null,null,null,"Online Total",null,1,0,1]
[null,null,null,null,null,null,null,null,null,null,"Grand Total",null,1,0,1]
[]
[]
[]
[]
[]
[]
[]
[]
[]
[]
[]
[]
[]
[]
[]
[]
[]
[]
[]
[]
[]
[]
[]
[]
[]
[]
[]
["Year","Month","# of Leads"]
["2023","Jul",1]
["2023 Total",null,1]
["Grand Total",null,1]

{"sheet":"Desired Accomplishment","index":1,"n_rows":11,"n_cols":3,"rows_kept":11,"cut":false,"hidden":false,"merged":[[0,0,0,2],[2,0,2,1]]}
["Desired Accomplishment Worksheet"]
[]
["Overall Ad Objective:"]
[null,"Advertising Budget:"]
[]
["My Plan","Direct Ad Goal","Notes"]
[null,"Catch reader’s attention"]
[null,"Have reader visit my website, social network page, or business"]
[null,"Have reader immediately place an order"]
[null,"Generate short and long term leads"]
[null,"Other"]

{"sheet":"List of Keywords","index":2,"n_rows":103,"n_cols":6,"rows_kept":103,"cut":false,"hidden":false,"merged":[]}
["List of kewords to use in headlines, ad bodies, and follow-ups"]
[]
["#","Keyword","Headline","Ad Body","Follow-up","Notes"]
[1,"Advice to","X","X","X"]
[2,"Amazing"]
[3,"Announcing"]
[4,"Astonishing"]
[5,"Bargain"]
[6,"Breakthrough"]
[7,"Change"]
[8,"Discover"]
[9,"Do You"]
[10,"Download"]
[11,"Electrifying"]
[12,"Fabulous"]
[13,"Fact"]
[14,"Finally"]
[15,"Free"]
[16,"Hate"]
[17,"Here "]
[18,"How Much"]
[19,"How to"]
[20,"How Would"]
[21,"Improve"]
[22,"Learn To"]
[23,"Life"]
[24,"Love"]
[25,"Made Easy"]
[26,"Marvelous"]
[27,"New"]
[28,"Now"]
[29,"Only"]
[30,"Pioneering"]
[31,"Protect"]
[32,"Proven"]
[33,"Sale"]
[34,"Secret"]
[35,"Solution"]
[36,"Start To"]
[37,"This"]
[38,"Tips"]
[39,"Truth of"]
[40,"Unbeatable"]
[41,"Unique"]
[42,"Urgent"]
[43,"Yes"]
[44,"You"]
[45,"You Need To"]
[46]
[47]
[48]
[49]
[50]
[51]
[52]
[53]
[54]
[55]
[56]
[57]
[58]
[59]
[60]
[61]
[62]
[63]
[64]
[65]
[66]
[67]
[68]
[69]
[70]
[71]
[72]
[73]
[74]
[75]
[76]
[77]
[78]
[79]
[80]
[81]
[82]
[83]
[84]
[85]
[86]
[87]
[88]
[89]
[90]
[91]
[92]
[93]
[94]
[95]
[96]
[97]
[98]
[99]
[100]

{"sheet":"Headlines","index":3,"n_rows":15,"n_cols":4,"rows_kept":15,"cut":false,"hidden":false,"merged":[]}
["Headlines Worksheet"]
[]
["#","Possible Headline","Number of Words","Notes"]
[1,null,{"$f":"IF(ISBLANK(B4),\"\",LEN(B4)-LEN(SUBSTITUTE(B4,\" \",\"\"))+1)","v":""}]
[2,null,""]
[3,null,""]
[4,null,""]
[5,null,""]
[6,null,""]
[7,null,{"$f":"IF(ISBLANK(B10),\"\",LEN(B10)-LEN(SUBSTITUTE(B10,\" \",\"\"))+1)","v":""}]
[8,null,""]
[9,null,""]
[10,null,""]
[11,null,{"$f":"IF(ISBLANK(B14),\"\",LEN(B14)-LEN(SUBSTITUTE(B14,\" \",\"\"))+1)","v":""}]
[12,null,""]

{"sheet":"Selling Points","index":4,"n_rows":17,"n_cols":4,"rows_kept":17,"cut":false,"hidden":false,"merged":[]}
["Selling Points Worksheet"]
[]
["#","Selling Point","Selling Point Type","Notes"]
[1,null,"               Better health \n               More comfort \n               More money \n               More leisure time\n               Better self-esteem \n               Greater success \n               Greater security \n               Entertainment \n               Quality \n               Exclusive Advantage\n               Other"]
[2,null,"               Better health \n               More comfort \n               More money \n               More leisure time\n               Better self-esteem \n               Greater success \n               Greater security \n               Entertainment \n               Quality \n               Exclusive Advantage\n               Other"]
[3,null,"               Better health \n               More comfort \n               More money \n               More leisure time\n               Better self-esteem \n               Greater success \n               Greater security \n               Entertainment \n               Quality \n               Exclusive Advantage\n               Other"]
[4,null,"               Better health \n               More comfort \n               More money \n               More leisure time\n               Better self-esteem \n               Greater success \n               Greater security \n               Entertainment \n               Quality \n               Exclusive Advantage\n               Other"]
[5,null,"               Better health \n               More comfort \n               More money \n               More leisure time\n               Better self-esteem \n               Greater success \n               Greater security \n               Entertainment \n               Quality \n               Exclusive Advantage\n               Other"]
[6,null,"               Better health \n               More comfort \n               More money \n               More leisure time\n               Better self-esteem \n               Greater success \n               Greater security \n               Entertainment \n               Quality \n               Exclusive Advantage\n               Other"]
[7,null,"               Better health \n               More comfort \n               More money \n               More leisure time\n               Better self-esteem \n               Greater success \n               Greater security \n               Entertainment \n               Quality \n               Exclusive Advantage\n               Other"]
[8,null,"               Better health \n               More comfort \n               More money \n               More leisure time\n               Better self-esteem \n               Greater success \n               Greater security \n               Entertainment \n               Quality \n               Exclusive Advantage\n               Other"]
[9,null,"               Better health \n               More comfort \n               More money \n               More leisure time\n               Better self-esteem \n               Greater success \n               Greater security \n               Entertainment \n               Quality \n               Exclusive Advantage\n               Other"]
[10,null,"               Better health \n               More comfort \n               More money \n               More leisure time\n               Better self-esteem \n               Greater success \n               Greater security \n               Entertainment \n               Quality \n               Exclusive Advantage\n               Other"]
[11,null,"               Better health \n               More comfort \n               More money \n               More leisure time\n               Better self-esteem \n               Greater success \n               Greater security \n               Entertainment \n               Quality \n               Exclusive Advantage\n               Other"]
[12,null,"               Better health \n               More comfort \n               More money \n               More leisure time\n               Better self-esteem \n               Greater success \n               Greater security \n               Entertainment \n               Quality \n               Exclusive Advantage\n               Other"]
[13,null,"               Better health \n               More comfort \n               More money \n               More leisure time\n               Better self-esteem \n               Greater success \n               Greater security \n               Entertainment \n               Quality \n               Exclusive Advantage\n               Other"]
[14,null,"               Better health \n               More comfort \n               More money \n               More leisure time\n               Better self-esteem \n               Greater success \n               Greater security \n               Entertainment \n               Quality \n               Exclusive Advantage\n               Other"]

{"sheet":"Ad Body","index":5,"n_rows":19,"n_cols":4,"rows_kept":19,"cut":false,"hidden":false,"merged":[[0,0,0,3]]}
["Ad Body Worksheet"]
[]
["#","Possible Ad Body","Number of Words","Notes"]
[1,null,{"$f":"IF(ISBLANK(B4),\"\",LEN(B4)-LEN(SUBSTITUTE(B4,\" \",\"\"))+1)","v":""}]
[2,null,""]
[3,null,""]
[4,null,""]
[5,null,""]
[6,null,""]
[7,null,""]
[8,null,""]
[9,null,""]
[10,null,""]
[11,null,""]
[12,null,""]
[13,null,{"$f":"IF(ISBLANK(B16),\"\",LEN(B16)-LEN(SUBSTITUTE(B16,\" \",\"\"))+1)","v":""}]
[14,null,""]
[15,null,""]
[16,null,""]

{"sheet":"Follow-up Type","index":6,"n_rows":5,"n_cols":3,"rows_kept":5,"cut":false,"hidden":false,"merged":[[0,0,0,2]]}
["Follow-up Type Worksheet"]
[]
["Type","Format\n(check all that apply)","Notes"]
["\n               Electronic","\n               Attachment (e.g., PDF)\n\n               Website\n\n               Video\n\n               Audio\n\n               Other\n"]
["\n               Physical","\n               Newsletter\n\n               Brochure\n\n               Catalog\n\n               Flyer\n\n               Audio CD/Flash Drive\n\n               Video CD/Flash Drive\n\n               Other\n"]

{"sheet":"Incentives","index":7,"n_rows":15,"n_cols":4,"rows_kept":15,"cut":false,"hidden":false,"merged":[[0,0,0,3]]}
["Incentive Worksheet"]
[]
["#","Incentive Idea","Incentive Location\n(check all that apply)","Notes"]
[1,null,"\n\n               Ad Body\n\n               Follow-up\n\n              Other"]
[2,null,"\n\n               Ad Body\n\n               Follow-up\n\n              Other"]
[3,null,"\n\n               Ad Body\n\n               Follow-up\n\n              Other"]
[4,null,"\n\n               Ad Body\n\n               Follow-up\n\n              Other"]
[5,null,"\n\n               Ad Body\n\n               Follow-up\n\n              Other"]
[6,null,"\n\n               Ad Body\n\n               Follow-up\n\n              Other"]
[7,null,"\n\n               Ad Body\n\n               Follow-up\n\n              Other"]
[8,null,"\n\n               Ad Body\n\n               Follow-up\n\n              Other"]
[9,null,"\n\n               Ad Body\n\n               Follow-up\n\n              Other"]
[10,null,"\n\n               Ad Body\n\n               Follow-up\n\n              Other"]
[11,null,"\n\n               Ad Body\n\n               Follow-up\n\n              Other"]
[12,null,"\n\n               Ad Body\n\n               Follow-up\n\n              Other"]

{"sheet":"Call to Action","index":8,"n_rows":15,"n_cols":4,"rows_kept":15,"cut":false,"hidden":false,"merged":[[0,0,0,3]]}
["Call to Action Worksheet"]
[]
["#","Call To Action","Action Location\n(check all that apply)","Notes"]
[1,null,"\n\n               Ad Body\n\n               Follow-up\n\n              Other"]
[2,null,"\n\n               Ad Body\n\n               Follow-up\n\n              Other"]
[3,null,"\n\n               Ad Body\n\n               Follow-up\n\n              Other"]
[4,null,"\n\n               Ad Body\n\n               Follow-up\n\n              Other"]
[5,null,"\n\n               Ad Body\n\n               Follow-up\n\n              Other"]
[6,null,"\n\n               Ad Body\n\n               Follow-up\n\n              Other"]
[7,null,"\n\n               Ad Body\n\n               Follow-up\n\n              Other"]
[8,null,"\n\n               Ad Body\n\n               Follow-up\n\n              Other"]
[9,null,"\n\n               Ad Body\n\n               Follow-up\n\n              Other"]
[10,null,"\n\n               Ad Body\n\n               Follow-up\n\n              Other"]
[11,null,"\n\n               Ad Body\n\n               Follow-up\n\n              Other"]
[12,null,"\n\n               Ad Body\n\n               Follow-up\n\n              Other"]

{"sheet":"Testimonials","index":9,"n_rows":15,"n_cols":5,"rows_kept":15,"cut":false,"hidden":false,"merged":[[0,0,0,4]]}
["Testimonials Worksheet"]
[]
["#","Person To Quote","Place To Quote\n(check all that apply)","Type","Quote"]
[1,null,"\n\n               Ad Body\n\n               Follow-up\n\n              Other","\n\n               Embedded\n\n               Linked\n"]
[2,null,"\n\n               Ad Body\n\n               Follow-up\n\n              Other","\n\n               Embedded\n\n               Linked\n"]
[3,null,"\n\n               Ad Body\n\n               Follow-up\n\n              Other","\n\n               Embedded\n\n               Linked\n"]
[4,null,"\n\n               Ad Body\n\n               Follow-up\n\n              Other","\n\n               Embedded\n\n               Linked\n"]
[5,null,"\n\n               Ad Body\n\n               Follow-up\n\n              Other","\n\n               Embedded\n\n               Linked\n"]
[6,null,"\n\n               Ad Body\n\n               Follow-up\n\n              Other","\n\n               Embedded\n\n               Linked\n"]
[7,null,"\n\n               Ad Body\n\n               Follow-up\n\n              Other","\n\n               Embedded\n\n               Linked\n"]
[8,null,"\n\n               Ad Body\n\n               Follow-up\n\n              Other","\n\n               Embedded\n\n               Linked\n"]
[9,null,"\n\n               Ad Body\n\n               Follow-up\n\n              Other","\n\n               Embedded\n\n               Linked\n"]
[10,null,"\n\n               Ad Body\n\n               Follow-up\n\n              Other","\n\n               Embedded\n\n               Linked\n"]
[11,null,"\n\n               Ad Body\n\n               Follow-up\n\n              Other","\n\n               Embedded\n\n               Linked\n"]
[12,null,"\n\n               Ad Body\n\n               Follow-up\n\n              Other","\n\n               Embedded\n\n               Linked\n"]

{"sheet":"Ad Keys","index":10,"n_rows":15,"n_cols":4,"rows_kept":15,"cut":false,"hidden":false,"merged":[[0,0,0,3]]}
["Ad Keys Worksheet"]
[]
["#","Key","Place To Key\n(check all that apply)","Notes"]
[1,null,"\n               Headline\n\n               Ad Body\n\n               Follow-up\n\n               Shopping Cart Checkout\n\n               Other"]
[2,null,"\n               Headline\n\n               Ad Body\n\n               Follow-up\n\n               Shopping Cart Checkout\n\n               Other"]
[3,null,"\n               Headline\n\n               Ad Body\n\n               Follow-up\n\n               Shopping Cart Checkout\n\n               Other"]
[4,null,"\n               Headline\n\n               Ad Body\n\n               Follow-up\n\n               Shopping Cart Checkout\n\n               Other"]
[5,null,"\n               Headline\n\n               Ad Body\n\n               Follow-up\n\n               Shopping Cart Checkout\n\n               Other"]
[6,null,"\n               Headline\n\n               Ad Body\n\n               Follow-up\n\n               Shopping Cart Checkout\n\n               Other"]
[7,null,"\n               Headline\n\n               Ad Body\n\n               Follow-up\n\n               Shopping Cart Checkout\n\n               Other"]
[8,null,"\n               Headline\n\n               Ad Body\n\n               Follow-up\n\n               Shopping Cart Checkout\n\n               Other"]
[9,null,"\n               Headline\n\n               Ad Body\n\n               Follow-up\n\n               Shopping Cart Checkout\n\n               Other"]
[10,null,"\n               Headline\n\n               Ad Body\n\n               Follow-up\n\n               Shopping Cart Checkout\n\n               Other"]
[11,null,"\n               Headline\n\n               Ad Body\n\n               Follow-up\n\n               Shopping Cart Checkout\n\n               Other"]
[12,null,"\n               Headline\n\n               Ad Body\n\n               Follow-up\n\n               Shopping Cart Checkout\n\n               Other"]

{"sheet":"Niche","index":11,"n_rows":15,"n_cols":5,"rows_kept":15,"cut":false,"hidden":false,"merged":[[0,0,0,4]]}
["Niche Worksheet"]
[]
["#","Target Group","Publication & Category","Type","Notes"]
[1,null,null,"\n               Online\n\n               Printed\n\n               Other"]
[2,null,null,"\n               Online\n\n               Printed\n\n               Other"]
[3,null,null,"\n               Online\n\n               Printed\n\n               Other"]
[4,null,null,"\n               Online\n\n               Printed\n\n               Other"]
[5,null,null,"\n               Online\n\n               Printed\n\n               Other"]
[6,null,null,"\n               Online\n\n               Printed\n\n               Other"]
[7,null,null,"\n               Online\n\n               Printed\n\n               Other"]
[8,null,null,"\n               Online\n\n               Printed\n\n               Other"]
[9,null,null,"\n               Online\n\n               Printed\n\n               Other"]
[10,null,null,"\n               Online\n\n               Printed\n\n               Other"]
[11,null,null,"\n               Online\n\n               Printed\n\n               Other"]
[12,null,null,"\n               Online\n\n               Printed\n\n               Other"]

{"sheet":"Ad Tracker","index":12,"n_rows":104,"n_cols":8,"rows_kept":104,"cut":false,"hidden":false,"merged":[]}
["Ad Tracker"]
[]
["#","Date","Publication/Online Service","Type","Tracking Code ","Cost","Total Leads","Cost Per Lead"]
[1,"2023-07-15","CoronelDP","Online",null,0,1,{"$f":"IF(G4=0,\"\",F4/G4)","v":0}]
[{"$f":"A4+1","v":2},null,null,null,null,null,null,""]
[{"$f":"A5+1","v":3},null,null,null,null,null,null,""]
[4,null,null,null,null,null,null,""]
[5,null,null,null,null,null,null,""]
[6,null,null,null,null,null,null,""]
[7,null,null,null,null,null,null,""]
[8,null,null,null,null,null,null,""]
[9,null,null,null,null,null,null,""]
[10,null,null,null,null,null,null,""]
[11,null,null,null,null,null,null,""]
[12,null,null,null,null,null,null,""]
[13,null,null,null,null,null,null,""]
[14,null,null,null,null,null,null,""]
[15,null,null,null,null,null,null,""]
[16,null,null,null,null,null,null,""]
[17,null,null,null,null,null,null,""]
[18,null,null,null,null,null,null,""]
[19,null,null,null,null,null,null,""]
[20,null,null,null,null,null,null,""]
[21,null,null,null,null,null,null,""]
[22,null,null,null,null,null,null,""]
[23,null,null,null,null,null,null,""]
[24,null,null,null,null,null,null,""]
[25,null,null,null,null,null,null,""]
[26,null,null,null,null,null,null,""]
[27,null,null,null,null,null,null,""]
[28,null,null,null,null,null,null,""]
[29,null,null,null,null,null,null,""]
[30,null,null,null,null,null,null,""]
[31,null,null,null,null,null,null,""]
[32,null,null,null,null,null,null,""]
[33,null,null,null,null,null,null,{"$f":"IF(G36=0,\"\",F36/G36)","v":""}]
[34,null,null,null,null,null,null,""]
[35,null,null,null,null,null,null,""]
[36,null,null,null,null,null,null,""]
[37,null,null,null,null,null,null,""]
[38,null,null,null,null,null,null,""]
[39,null,null,null,null,null,null,""]
[40,null,null,null,null,null,null,""]
[41,null,null,null,null,null,null,""]
[42,null,null,null,null,null,null,""]
[43,null,null,null,null,null,null,""]
[44,null,null,null,null,null,null,""]
[45,null,null,null,null,null,null,""]
[46,null,null,null,null,null,null,""]
[47,null,null,null,null,null,null,""]
[48,null,null,null,null,null,null,""]
[49,null,null,null,null,null,null,""]
[50,null,null,null,null,null,null,""]
[51,null,null,null,null,null,null,""]
[52,null,null,null,null,null,null,""]
[53,null,null,null,null,null,null,""]
[54,null,null,null,null,null,null,""]
[55,null,null,null,null,null,null,""]
[56,null,null,null,null,null,null,""]
[57,null,null,null,null,null,null,""]
[58,null,null,null,null,null,null,""]
[59,null,null,null,null,null,null,""]
[60,null,null,null,null,null,null,""]
[61,null,null,null,null,null,null,""]
[62,null,null,null,null,null,null,""]
[63,null,null,null,null,null,null,""]
[64,null,null,null,null,null,null,""]
[65,null,null,null,null,null,null,{"$f":"IF(G68=0,\"\",F68/G68)","v":""}]
[66,null,null,null,null,null,null,""]
[{"$f":"A69+1","v":67},null,null,null,null,null,null,""]
[68,null,null,null,null,null,null,""]
[69,null,null,null,null,null,null,""]
[70,null,null,null,null,null,null,""]
[71,null,null,null,null,null,null,""]
[72,null,null,null,null,null,null,""]
[73,null,null,null,null,null,null,""]
[74,null,null,null,null,null,null,""]
[75,null,null,null,null,null,null,""]
[76,null,null,null,null,null,null,""]
[77,null,null,null,null,null,null,""]
[78,null,null,null,null,null,null,""]
[79,null,null,null,null,null,null,""]
[80,null,null,null,null,null,null,""]
[81,null,null,null,null,null,null,""]
[82,null,null,null,null,null,null,""]
[83,null,null,null,null,null,null,""]
[84,null,null,null,null,null,null,""]
[85,null,null,null,null,null,null,""]
[86,null,null,null,null,null,null,""]
[87,null,null,null,null,null,null,""]
[88,null,null,null,null,null,null,""]
[89,null,null,null,null,null,null,""]
[90,null,null,null,null,null,null,""]
[91,null,null,null,null,null,null,""]
[92,null,null,null,null,null,null,""]
[93,null,null,null,null,null,null,""]
[94,null,null,null,null,null,null,""]
[95,null,null,null,null,null,null,""]
[96,null,null,null,null,null,null,""]
[97,null,null,null,null,null,null,{"$f":"IF(G100=0,\"\",F100/G100)","v":""}]
[98,null,null,null,null,null,null,{"$f":"IF(G101=0,\"\",F101/G101)","v":""}]
[99,null,null,null,null,null,null,""]
[100,null,null,null,null,null,null,""]
["Total",null,null,null,null,{"$f":"SUBTOTAL(109,AdTracker[Cost])","v":0},{"$f":"SUBTOTAL(109,AdTracker[Total Leads])","v":1}]

{"sheet":"Follow-up Tracker","index":13,"n_rows":103,"n_cols":13,"rows_kept":103,"cut":false,"hidden":false,"merged":[]}
["Follow-up Tracker"]
[]
["#","Date","Name","Address","City","State","Zip","Country","Phone","Email","Source / Key","Result","FU Type"]
[1,"2023-07-15","John Smith","1234 Main street","Anytown","CA",90012,"USA",null,null,"A1","Sale","Other"]
[{"$f":"A4+1","v":2}]
[{"$f":"A5+1","v":3}]
[4]
[5]
[6]
[7]
[8]
[9]
[10]
[11]
[12]
[13]
[14]
[15]
[16]
[17]
[18]
[19]
[20]
[21]
[22]
[23]
[24]
[25]
[26]
[27]
[28]
[29]
[30]
[31]
[32]
[33]
[34]
[35]
[36]
[37]
[38]
[39]
[40]
[41]
[42]
[43]
[44]
[45]
[46]
[47]
[48]
[49]
[50]
[51]
[52]
[53]
[54]
[55]
[56]
[57]
[58]
[59]
[60]
[61]
[62]
[63]
[64]
[65]
[66]
[{"$f":"A69+1","v":67}]
[68]
[69]
[70]
[71]
[72]
[73]
[74]
[75]
[76]
[77]
[78]
[79]
[80]
[81]
[82]
[83]
[84]
[85]
[86]
[87]
[88]
[89]
[90]
[91]
[92]
[93]
[94]
[95]
[96]
[97]
[98]
[99]
[100]

{"sheet":"Site List","index":14,"n_rows":106,"n_cols":5,"rows_kept":106,"cut":false,"hidden":false,"merged":[]}
["Site List"]
[]
["Site","Address","Site Type","Account Setup","Notes"]
["eBay","https://www.ebay.com/","Auction/Selling","No"]
["Bidding For Good","https://www.biddingforgood.com","Auction","No"]
["Charity Auctions Today","https://www.charityauctionstoday.com/","Auction","No"]
["Live Auctioneers","https://www.liveauctioneers.com/","Auction","No"]
["Sotheby’s","https://www.sothebys.com/en/","Auction","No"]
["Auctria","https://www.auctria.com/","Auction","No"]
["Artsy","https://www.artsy.net/","Auction","No"]
["Charitybuzz","https://www.charitybuzz.com/","Auction","No"]
["Give Smart","https://www.givesmart.com/","Auction","No"]
["Invaluable","https://www.invaluable.com/","Auction","No"]
["Abell Auctions","https://www.abell.com/","Auction","No"]
["Christie’s","https://www.christies.com/","Auction","No"]
["Auction.com","https://www.auction.com/","Auction","No"]
["ACV Auction","https://www.acvauctions.com/","Auction","No"]
["Copart","https://www.copart.com/","Auction","No"]
["Amazon","https://www.amazon.com/","Selling","No"]
["Bonanza","https://www.bonanza.com/","Selling","No"]
["Chairish","https://www.chairish.com/","Selling","No"]
["Craigslist","https://www.craigslist.org/","Selling","No"]
["Etsy","https://www.etsy.com/","Selling","No"]
["Facebook Marketplace","https://www.facebook.com/marketplace","Selling","No"]
["Handshake","https://www.handshake.com/","Selling","No"]
["Newegg","https://www.newegg.com/","Selling","No"]
["Nextdoor","https://nextdoor.com/","Selling","No"]
["Poshmark","https://poshmark.com/","Selling","No"]
["Redbubble","https://www.redbubble.com/","Selling","No"]
["Ruby Lane","https://www.rubylane.com/","Selling","No"]
["Swappa","https://swappa.com/","Selling","No"]
["Chicago Reader ","http://www.chicagoreader.com/","Newspaper","No"]
["The Miami Herald","http://www.miamiherald.com/adperfect","Newspaper","No"]
["IndoLink","http://www.indolink.com/","Newspaper","No"]
["Vicksburg Post","http://vicksburgpost.com/","Newspaper","No"]
["Sun Newspapers","http://www.yoursun.com/","Newspaper","No"]
["USA Today","http://www.usatoday.com/default.htm","Newspaper","No"]
["Los Angeles Times","http://www.latimes.com/","Newspaper","No"]
["The Washington Post","http://www.washingtonpost.com/","Newspaper","No"]
["Daily News","http://www.nydailynews.com/","Newspaper","No"]
["Houston Chronicle","http://www.chron.com/","Newspaper","No"]
["Dallas Morning News","http://www.dallasnews.com/","Newspaper","No"]
["San Francisco Chronicle","http://www.sfgate.com/","Newspaper","No"]
["Newsday - New York","http://www.newsday.com/","Newspaper","No"]
["The Arizona Republic","http://www.azcentral.com/arizonarepublic/","Newspaper","No"]
["The Boston Globe ","http://www.boston.com/bostonglobe/","Newspaper","No"]
["The Atlanta Journal-Constitution","http://www.ajc.com/","Newspaper","No"]
["The Star-Ledger - New Jersey","http://www.nj.com/","Newspaper","No"]
["Star Tribune - Minneapolis","http://www.startribune.com/","Newspaper","No"]
["Detroit Free Press","http://www.freep.com/","Newspaper","No"]
["Philadelphia Inquirer","http://www.philly.com/","Newspaper","No"]
["The Plain Dealer - Cleveland","http://www.cleveland.com/","Newspaper","No"]
["St. Petersburg Times - Florida","http://www.tampabay.com/","Newspaper","No"]
["The Oregonian - Portland","http://www.oregonlive.com/oregonian/","Newspaper","No"]
["The San Diego Union-Tribune","http://www.signonsandiego.com/","Newspaper","No"]
["The Denver Post","http://www.denverpost.com/","Newspaper","No"]
["The Sacramento Bee ","http://www.sacbee.com/","Newspaper","No"]
["The Orange County Register - Calif.","http://www.ocregister.com/","Newspaper","No"]
["St. Louis Post-Dispatch","http://www.stltoday.com/","Newspaper","No"]
["San Jose Mercury News","http://www.mercurynews.com/","Newspaper","No"]
["The Detroit News","http://www.detnews.com/","Newspaper","No"]
["The Times-Picayune - New Orleans ","http://www.nola.com/","Newspaper","No"]
["South Florida Sun-Sentinel","http://www.sun-sentinel.com/","Newspaper","No"]
["The Indianapolis Star ","http://www.indystar.com/","Newspaper","No"]
["The Orlando Sentinel","http://www.orlandosentinel.com/","Newspaper","No"]
["The Sun - Baltimore","http://www.baltimoresun.com/","Newspaper","No"]
["San Antonio Express-News ","http://www.mysanantonio.com/","Newspaper","No"]
["The Columbus Dispatch","http://www.dispatch.com/live/content/index.html","Newspaper","No"]
["Milwaukee Journal Sentinel","http://www.jsonline.com/","Newspaper","No"]
["The Boston Herald","http://www.bostonherald.com/","Newspaper","No"]
["The Charlotte Observer","http://www.charlotteobserver.com/","Newspaper","No"]
["The Seattle Times","http://seattletimes.nwsource.com/html/home/index.html","Newspaper","No"]
["The Oklahoman","http://www.newsok.com/","Newspaper","No"]
["The Courier-Journal - Louisville","http://www.courier-journal.com/","Newspaper","No"]
["The Virginian-Pilot","http://pilotonline.com/","Newspaper","No"]
["The Cincinnati Enquirer","http://news.cincinnati.com/apps/pbcs.dll/section?Category=NEWS","Newspaper","No"]
["Omaha World-Herald","http://www.omaha.com/","Newspaper","No"]
["The Hartford Courant","http://www.ctnow.com/","Newspaper","No"]
["Saint Paul Pioneer Press","http://www.twincities.com/","Newspaper","No"]
["Timesdispatch","http://www2.timesdispatch.com/","Newspaper","No"]
["The Press-Enterprise - Riverside, CA","http://www.pe.com/","Newspaper","No"]
["Contra Costa (CA) Times ","http://www.contracostatimes.com/","Newspaper","No"]
["Austin American-Statesman","http://www.statesman.com/","Newspaper","No"]
["The Palm Beach (FL) Post","http://www.palmbeachpost.com/","Newspaper","No"]
["The Record - Hackensack, NJ","http://www.northjersey.com/","Newspaper","No"]
["Daily News - Woodland Hills, CA","http://www.dailynews.com/","Newspaper","No"]
["The News & Observer - Raleigh, NC","http://www.newsobserver.com/","Newspaper","No"]
["The Tennessean- Nashville","http://www.tennessean.com/","Newspaper","No"]
["The Commercial Appeal - Memphis, TN","http://www.commercialappeal.com/","Newspaper","No"]
["The Florida Times-Union - Jacksonville ","http://jacksonville.com/","Newspaper","No"]
["Democrat and Chronicle - Rochester, NY","http://www.democratandchronicle.com/","Newspaper","No"]
["Las Vegas Review-Journal","http://www.lvrj.com/","Newspaper","No"]
["The Fresno Bee","http://www.fresnobee.com/","Newspaper","No"]
["The Providence Journal","http://www.projo.com/","Newspaper","No"]
["Asbury Park Press - Neptune, NJ","http://www.app.com/","Newspaper","No"]
["The Birmingham News ","http://www.al.com/","Newspaper","No"]
["The Des Moines Register","http://www.desmoinesregister.com/","Newspaper","No"]
["Tulsa World ","http://www.tulsaworld.com/","Newspaper","No"]
["The Honolulu Advertiser","http://www.staradvertiser.com/","Newspaper","No"]
["The Akron Beacon Journal","http://www.ohio.com/","Newspaper","No"]
["POST Newspapers","http://www.postnewspapers.com.au/index.php","Newspaper","No"]
["The State","http://www.thestate.com/","Newspaper","No"]
["African American News & Issues","http://aframnews.com/","Newspaper","No"]
["Alibi","http://alibi.com/","Newspaper","No"]
["CWEB Free Classifieds","http://www.cweb.com/","Newspaper","No"]
["CAmbridge Now","http://www.cambridgenow.ca/","Newspaper","No"]